Cogmind - Beta 17.1 @@@ ROGUE MODE // 2026.09.06 @ 01:05:57 Player: robotix Result: Destroyed by MT-213(R) with Subdweller Laser Performance ------------- Evolutions (0) 0 Regions Visited (2) 400 Robots Destroyed (16) 80 Value Destroyed (436) 436 Prototype IDs (0) 0 Alien Tech Used (0) 0 Bonus (0) 0 TOTAL SCORE: 916 Bonus ------- None Cogmind --------- Core Integrity 0/250 Matter 224/300 Energy 100/100 System Corruption 0% Temperature Cool (6) Movement Walking (120) Location -10/Subcaves Parts ------- > --- POWER (1) -------- (None) > --- PROPULSION (2) --- Aluminum Leg Aluminum Leg > --- UTILITY (2) ------ Medium Storage Unit Weapon Shielding > --- WEAPON (2) ------- Battle Rifle Enhanced Flamer > --- INVENTORY (10) --- Ion Engine Light Ion Engine Aluminum Leg ECM Suite Hacking Suite Small Laser Peak State ------------ > --- POWER ------------ Ion Engine > --- PROPULSION ------- Aluminum Leg Aluminum Leg > --- UTILITY ---------- Medium Storage Unit Backup Plating I > --- WEAPON ----------- Small Laser Enhanced Flamer > --- INVENTORY -------- Ion Engine Light Ion Engine Aluminum Leg Aluminum Leg Aluminum Leg ECM Suite Weapon Shielding Hacking Suite Small Laser Battle Rifle [Rating: 10] Favorites ----------- Power Light Ion Engine Engine Light Ion Engine Propulsion Aluminum Leg Leg Aluminum Leg Utility Medium Storage Unit Storage Medium Storage Unit Protection Backup Plating I Weapon Small Laser Energy Gun Small Laser Ballistic Gun Battle Rifle Special Weapon Enhanced Flamer Build | -11 -10 -10 ------- Run | Yrd Mat Sub Slots Evolved . | . . . Power . | . . . Propulsion . | . . . Utility . | . . . Weapon . | . . . Parts Attached 18 | 6 5 7 Power 3 | 1 1 1 Engine 3 | 1 1 1 Core . | . . . Reactor . | . . . Propulsion 7 | 2 2 3 Treads . | . . . Leg 7 | 2 2 3 Wheel . | . . . Hover . | . . . Flight . | . . . Utility 3 | 1 1 1 Device . | . . . Storage 2 | 1 1 . Processor . | . . . Hackware . | . . . Protection 1 | . . 1 Artifact . | . . . Weapon 5 | 2 1 2 Energy Gun 3 | 2 1 . Energy Cannon . | . . . Ballistic Gun 1 | . . 1 Ballistic Cannon . | . . . Launcher . | . . . Special Weapon 1 | . . 1 Impact Weapon . | . . . Slashing Weapon . | . . . Piercing Weapon . | . . . Special Melee Weapon . | . . . Unidentified Prototypes . | . . . Parts Lost 8 | . 3 5 Power 2 | . 1 1 Propulsion 3 | . 1 2 Utility 1 | . . 1 Weapon 2 | . 1 1 Highest Loss Streak 5 | . 1 5 To Critical Strikes . | . . . Average Backups 5 | . 5 9 Power 1 | . 1 2 Propulsion 2 | . 3 3 Utility 1 | . . 2 Weapon . | . . 1 Tool/Special . | . . . Unused Backups 5 | 1 . 4 Power 2 | . . 2 Propulsion 2 | 1 . 1 Utility 1 | . . 1 Weapon . | . . . Tool/Special . | . . . Average Slot Usage (%) 85 | . 83 96 Engine 13 | . 13 14 Leg 27 | . 27 27 Storage 14 | . 14 14 Protection 4 | . 3 11 Energy Gun 22 | . 23 16 Ballistic Gun 1 | . . 7 Peak Build Rating 10 | 6 8 10 Average Rating 6 | 4 6 8 On Entrance 4 | . 6 8 Avg Prop Armor Cover (%) . | . . . Naked Turns . | . . . Heaviest Build 20 | 10 16 20 Greatest Support 20 | 20 20 20 Greatest Overweight (x) 1 | . . 1 Average Overweight (x) . | . . . Largest Inventory Capacity 10 | 8 10 10 Average Capacity 9 | 6 9 10 Most Carried 10 | 4 10 10 Average Carried 5 | . 5 9 Final Capacity 10 | 8 10 10 Final Carried 10 | . 10 6 Class Distribution -------------------- 89% | Mutant 10% | Scavenger-Mutant Dominant Class ---------------- Mutant | -10/Materials Scavenger-Mutant | -10/Subcaves Resources | -11 -10 -10 ----------- Run | Yrd Mat Sub Matter Collected 336 | 247 38 51 Remotely . | . . . Salvage Created 515 | . 466 49 Parts 39 | . 33 6 Haulers Intercepted 1 | . 1 . Recyclers Shooed . | . . . Parts Field Recycled . | . . . Retrieved Matter . | . . . Parts Self-Destructed . | . . . Prevented . | . . . Parts Restored . | . . . Kills | -11 -10 -10 ------- Run | Yrd Mat Sub Combat Hostiles Destroyed 13 | . 12 1 Guns 13 | . 12 1 Classes Destroyed 6 | . 5 1 Hauler 1 | . 1 . Operator 1 | . 1 . Watcher 1 | . 1 . Swarmer 3 | . 3 . Grunt 9 | . 9 . Subdweller 1 | . . 1 Best Kill Streak 6 | . 6 1 Combat Bots Only 5 | . 5 1 Max Kills in Single Turn 2 | . 2 1 Gunslinging . | . . . Exploded . | . . . Melee . | . . . Uniques/NPCs Destroyed . | . . . Combat | -11 -10 -10 -------- Run | Yrd Mat Sub Hostile Shots Fired 86 | . 54 32 Missed 21 | . 17 4 Hits 65 | . 37 28 Projectile 65 | . 37 28 AOE 1 | . 1 . Damage Taken 1193 | . 609 584 Core 265 | . 137 128 Absorbed by Shields . | . . . Redirected to Shielding 20 | . . 20 Core Remaining (%) 100 | 100 . . Volleys Fired 84 | . 65 19 Largest 2 | . 2 2 Hottest 120 | . 80 120 Shots Fired 144 | . 109 35 Gun 136 | . 109 27 Cannon . | . . . Launcher . | . . . Special 8 | . . 8 Kinetic 14 | . . 14 Thermal 130 | . 109 21 Explosive . | . . . Electromagnetic . | . . . Robot Hit Streak 18 | . 6 18 Robot Miss Streak 4 | . 4 3 Penetration Max . | . . . Secondary Targets 2 | . 1 1 Max Gunslinging Chain 1 | . 1 1 Shots Hit Robots 93 | . 63 30 Core Hits 33 | . 30 3 Critical Kills . | . . . Critical Parts Destroyed . | . . . Critical Strikes . | . . . Melee Attacks . | . . . Impact . | . . . Slashing . | . . . Piercing . | . . . Sneak Attacks . | . . . Combat Hostiles . | . . . Follow-up Attacks . | . . . Damage Inflicted 789 | . 698 91 Guns 757 | . 698 59 Cannons . | . . . Explosions . | . . . Melee . | . . . Ramming . | . . . Kinetic 48 | . . 48 Thermal 741 | . 698 43 Explosive . | . . . Electromagnetic . | . . . Impact . | . . . Slashing . | . . . Piercing . | . . . Highest Corruption . | . . . Average Corruption . | . . . Corruption Purged . | . . . Corruption Blocked . | . . . Overload Shots . | . . . Overflow Damage . | . . . Projectiles . | . . . Explosions . | . . . Melee . | . . . Knockbacks . | . . . Impact . | . . . Kinetic . | . . . Secondary . | . . . Self-Inflicted Damage . | . . . Shots . | . . . Rammed . | . . . Targets Rammed . | . . . Kicked . | . . . Crushed . | . . . Highest Temperature 252 | . 252 12 Average Temperature 65 | . 69 6 Received Heat Transfer 381 | . 225 156 Siege Activations . | . . . Martial Activations . | . . . Shielding Activations . | . . . Robots Disrupted . | . . . Combat Hostiles . | . . . Robots Corrupted . | . . . Combat Hostiles . | . . . Parts Fried . | . . . Impact Corruptions . | . . . Robots Melted . | . . . Combat Hostiles . | . . . Parts Melted 2 | . 2 . Heat Transferred 1890 | . 1625 265 Parts Sabotaged . | . . . Parts Stolen . | . . . Parts Stripped . | . . . Power Chain Reactions . | . . . Alert | -11 -10 -10 ------- Run | Yrd Mat Sub Maximum Alert Level . | . . . Low Security (%) 100 | 100 100 . Level 1 . | . . . Level 2 . | . . . Level 3 . | . . . Level 4 . | . . . Level 5 . | . . . High Security . | . . . Max Security . | . . . Peak Influence 117 | . 117 . Initial . | . . . Average 35 | . 37 . Influence Increases 381 | . 381 . Destroy 0b10 Robot/C 240 | . 240 . Destroy 0b10 Robot/NC 15 | . 15 . Destroy Leader 54 | . 54 . Successful Hack 12 | . 12 . Lose Combat Pursuer 60 | . 60 . Influence Decreases 381 | . 308 73 Entered New Map 36 | . . 36 Time Decay 315 | . 278 37 Lost Part 30 | . 30 . Squads Dispatched 2 | . 2 . Investigation 1 | . 1 . Extermination . | . . . Reinforcement 1 | . 1 . Assault . | . . . Garrison . | . . . Intercept . | . . . Searches Triggered . | . . . Construction Impeded . | . . . Haulers Reinforced . | . . . Active Scanning Responses . | . . . Cargo Convoy Interrupts . | . . . Stealth | -11 -10 -10 --------- Run | Yrd Mat Sub Distress Signals 2 | . 2 . Communications Jammed . | . . . Distress Signals . | . . . Times Spotted 26 | . 24 2 Peak Tracking Total 6 | . 6 2 Tactical Retreats 3 | . 3 . Traps | -11 -10 -10 ------- Run | Yrd Mat Sub Traps Triggered 1 | . 1 . Indirectly . | . . . Trap Hack Attempts . | . . . Triggered . | . . . Disarmed . | . . . Reprogrammed . | . . . Reused . | . . . Traps Extracted . | . . . Installed . | . . . Triggered . | . . . Machines | -11 -10 -10 ---------- Run | Yrd Mat Sub Machines Disabled . | . . . Max in Single Turn . | . . . Machines Repaired . | . . . Machines Dismantled . | . . . Machines Sabotaged . | . . . Overloaded Fab Kills . | . . . Hacking | -11 -10 -10 --------- Run | Yrd Mat Sub Machines Accessed 4 | . 4 . Terminals 3 | . 3 . Fabricators . | . . . Repair Stations 1 | . 1 . Recycling Units . | . . . Scanalyzers . | . . . Garrison Access . | . . . Total Hacks 9 | . 9 . Successful 6 | . 6 . Failed 3 | . 3 . Catastrophic . | . . . Database Lockouts . | . . . Manual 3 | . 3 . Terminals 8 | . 8 . Fabricators . | . . . Repair Stations 1 | . 1 . Recycling Units . | . . . Scanalyzers . | . . . Garrison Access . | . . . Terminal Hacks 5 | . 5 . Record 1 | . 1 . Alert Level 1 | . 1 . Locate Traps 1 | . 1 . Transport Status 1 | . 1 . Zone Layout 1 | . 1 . Fabricator Hacks . | . . . Repair Station Hacks 1 | . 1 . Refit 1 | . 1 . Recycling Unit Hacks . | . . . Scanalyzer . | . . . Garrison Access Hacks . | . . . Unauthorized Hacks . | . . . Terminals . | . . . Fabricators . | . . . Repair Stations . | . . . Recycling Units . | . . . Scanalyzers . | . . . Garrison Access . | . . . Data Cores Recovered . | . . . Used . | . . . Hacking Detections 3 | . 3 . Full Trace Events . | . . . Feedback Events . | . . . Feedback Blocked . | . . . Robot Schematics Acquired . | . . . Robots Built . | . . . Authchips . | . . . Time . | . . . Total Robot Build Rating . | . . . Part Schematics Acquired . | . . . Parts Built . | . . . Authchips . | . . . Time . | . . . Total Part Build Rating . | . . . Part Studies Acquired . | . . . Parts Repaired . | . . . Time . | . . . Parts Recycled . | . . . Recycled Matter . | . . . Retrieved Matter . | . . . Retrieved Components . | . . . Parts Scanalyzed . | . . . Part Schematics Acquired . | . . . Parts Damaged . | . . . Bothacking | -11 -10 -10 ------------ Run | Yrd Mat Sub Used RIF Installer . | . . . Robots Hacked . | . . . Non-combat . | . . . Combat . | . . . Robot Hacks Applied . | . . . Relay Couplers Released . | . . . Fabnet Peak Effective % . | . . . Robots Rewired . | . . . Allies Hacked . | . . . Hacks Repelled . | . . . Allies | -11 -10 -10 -------- Run | Yrd Mat Sub Total Allies . | . . . Largest Group . | . . . Highest-Rated Group . | . . . Highest-Rated Ally . | . . . Total Orders . | . . . Ally Attacks . | . . . Total Damage . | . . . Kills . | . . . Allies Corrupted . | . . . Allies Melted . | . . . Intel | -11 -10 -10 ------- Run | Yrd Mat Sub Active Infowar (turns) . | . . . Robot Analysis Total . | . . . Derelict Logs Recovered 1 | . . 1 Drone Launches . | . . . Drone Recoveries . | . . . Exploration | -11 -10 -10 ------------- Run | Yrd Mat Sub Turns Passed 1108 | 60 867 181 Spaces Moved 675 | 45 541 89 Core 9 | 9 . . Treads . | . . . Legs 666 | 36 541 89 Wheels . | . . . Hover . | . . . Flight . | . . . Fastest Speed 50 | 50 120 120 Average Speed 119 | 106 120 120 Slowest Speed 190 | 120 120 190 Overloaded Moves . | . . . Propulsion Burnouts . | . . . Robots Hopped . | . . . Potential Cave-ins . | . . . Cave-ins Triggered . | . . . Exploration Rate (%) 25 | 3 70 4 Regions Visited 2 Branch Regions 1 Pre-discovered Areas . | . . . Known Exits Taken . | . . . Unknown Exits Taken 2 | 1 1 . Scrap Searched . | . . . Spaces Dug . | . . . Terrain Destroyed . | . . . Melee . | . . . Projectile . | . . . AOE . | . . . Terrain Rammed . | . . . Walls Destroyed . | . . . Machines Disabled . | . . . Actions | -11 -10 -10 --------- Run | Yrd Mat Sub Total 828 | 58 649 121 Wait 24 | . 24 . Move 673 | 44 540 89 Hop . | . . . Pick Up 22 | 7 13 2 Fast Attach 2 | . 2 . Attach 12 | 6 2 4 Detach . | . . . Swap 6 | . 1 5 Drop 5 | 1 2 2 Fire 84 | . 65 19 Melee . | . . . Ram . | . . . Kick . | . . . Crush . | . . . Escape Stasis . | . . . Rewire . | . . . Trap . | . . . Miscellaneous . | . . . Route ------- -11/Scrapyard -10/Materials (discovered 2 exits: [*Mat] / [*Sub]) -10/Subcaves History --------- Turn | Location | Event 7 | -11/Scrapyard | Discovered new exit (range 16) 61 | -11/Scrapyard | Entered Materials 301 | -10/Materials | Discovered new exit (range 13) 308 | -10/Materials | Build established: Mutant 881 | -10/Materials | Core integrity fell below 50% 920 | -10/Materials | Discovered new exit (range 5) 928 | -10/Materials | Entered Subcaves 929 | -10/Subcaves | Approached by a straggling Scientist 931 | -10/Subcaves | Learned 4 Materials zone layouts 950 | -10/Subcaves | Shifting Twisted Machinery released Enh. Flamer 953 | -10/Subcaves | Shifting Twisted Machinery released Battle Rifle 1057 | -10/Subcaves | Core integrity fell below 20% 1109 | -10/Subcaves | Destroyed by MT-213(R) with Subdweller Laser Last Messages --------------- Acquired 5 matter. Acquired 15 matter. Subatomizers dissect the Aluminum Leg. 3X-JS0(c): "I think it's somewhere northwest of here" Subatomizers dissect the Lgt. Ion Engine. Backup Plating I destroyed. N5-VNN(R) destroyed. Switching to secondary target: MT-213(R). 3X-JS0(c) destroyed. Aluminum Leg destroyed. Sml. Laser destroyed. Subatomizers dissect the Lgt. Ion Engine. Aluminum Leg destroyed. Overweight warning: You are carrying more than your current propulsion can efficiently support, which slows movement; see status page ('s') or the top of the parts list for the specific mass vs. support values. Subatomizers dissect the Lgt. Ion Engine. Ion Engine destroyed. Map ----- +----------------------------------------------------+ | ??????????????????????# ???????????????????? | | ??????????????????????# ???????????????????? | | ?????????????????????? ???????????????????? | | ?????????????????????? ???????????????????? | | ??????????????????????# #???????????????????? | | ?????????????????????## ##??????????????????? | | ????????????????????? ???????????????????? | | ?????????????????????? ???????????????????? | | ?????????????????????? #???????????????????? | | ??????????????????????? ##??????????????????? | | ??????????????????????? ##?????????????????? | | ???????????????????????# #?????????????????? | | ??????????????????????## #?????????????????? | | ?????????????????????## ###?????????????????? | | ??????????#####????### #####????????????????? | | ??????????# ##### ###??????????????? | | ??????????# #??????????????? | | ??????????# & ### #??????????????? | | ??????????### # &=* ### ##?????????????? | | ??????????????#####%&"" ## #?????????????? | | ?????????????????#![""" # ##?????????????? | | ?????????????????##%= # ##??????????????? | | ??????????????????#= #### #???????????????? | | ???????????????#### ##### % #???????????????? | | ??????????????##"" R ### #???????????????? | | ?????????????## " "" @ ####???????????????? | | ?????????????# *"""" #?????????????????? | | ????????????# """" #?????????????????? | | ????????????# ## """""" #?????????????????? | | ???????????#" ?## """"" ##????????????????? | | ???????????## #??##"""""" #????????????????? | | ???????????? ????#""""## ###????????????????? | | ???????????####????#""""####??????????????????? | | ????????????????????# #?????????????????????? | | ????????????????????##????????????????????????? | | ??????????????????????????????????????????????? | | ??????????????????????????????????????????????? | | ??????????????????????????????????????????????? | | ??????????????????????????????????????????????? | | ??????????????????????????????????????????????? | | ??????????????????????????????????????????????? | | ??????????????????????????????????????????????? | | ??????????????????????????????????????????????? | | ??????????????????????????????????????????????? | | ??????????????????????????????????????????????? | | ??????????????????????????????????????????????? | | ??????????????????????????????????????????????? | | ??????????????????????????????????????????????? | | ??????????????????????????????????????????????? | | ??????????????????????????????????????????????? | +----------------------------------------------------+ Best States ------------- Heat Dissipation 25 Energy Generation 10 Energy Capacity 250 Matter Stores 300 Matter Capacity 300 Sight Range 16 Terrain Scan Density 10 Armor Coverage 80 Weapon Shielding 33 Evasion (%) 55 Item Schematics ----------------- None Robot Schematics ------------------ None Fabricated ------------ Nothing Repaired ---------- Nothing Studied --------- None Alien Tech Used ----------------- None Achievements -------------- None Challenges ------------ None Game ------ Seed CoordinationChainAmplifier Manual? 0 Play Time 00:18:23 Cumulative 35.0 hours Start 2026.09.04 @ 23:57:18 End 2026.09.06 @ 01:05:57 Sessions 5 Manual Loads 0 Difficulty Rogue Special Mode None Game No. 31 Rogue 31 Adventurer 0 Explorer 0 Win Type - Total 0 Types 0/0/0/0/0/0/0/0/0/0 Lore% 16 Gallery% 28 Achievement% 22 Wizard Run 0 Options --------- Layout 1 ASCII 0 Keyboard 0 Movement Mouse Keybinds 0 Fullscreen 1 Font 16/SmallcapsGlow Map View 55x38 Zoom Use 0% Tactical HUD 0 Map Filters NONE Filters NONE Steam 1 RUN: b677667f-1cbb-40bc-907d-280f580a5b8d